[Event "Late-Titled-Tuesday-Blitz-October-24-2023"]
[Site "Chess.com"]
[Date "2023.10.24"]
[Round "1"]
[White "DanielTitichoca"]
[Black "PapaieDudu"]
[Result "1-0"]
[WhiteElo "2645"]
[BlackElo "2341"]
[TimeControl "180+1"]
[EndTime "14:07:34 PDT"]
[Termination "DanielTitichoca won on time"]

1. c4 {[%clk 0:02:57.8]} 1... e6 {[%clk 0:02:59.5]} 2. Nf3 {[%clk 0:02:57.5]}
2... Nf6 {[%clk 0:03:00.1]} 3. e3 {[%clk 0:02:58.4]} 3... d5 {[%clk 0:03:00.7]}
4. b3 {[%clk 0:02:56.7]} 4... Be7 {[%clk 0:03:00.5]} 5. Bb2 {[%clk 0:02:57.3]}
5... O-O {[%clk 0:03:01.1]} 6. Nc3 {[%clk 0:02:57.1]} 6... Re8 {[%clk
0:03:01.5]} 7. Be2 {[%clk 0:02:54.1]} 7... b6 {[%clk 0:03:00.2]} 8. O-O {[%clk
0:02:54.5]} 8... Bb7 {[%clk 0:03:00.2]} 9. Rc1 {[%clk 0:02:52.9]} 9... a6 {[%clk
0:02:59.4]} 10. Qc2 {[%clk 0:02:51.7]} 10... Nc6 {[%clk 0:02:58.2]} 11. a3
{[%clk 0:02:47.9]} 11... h6 {[%clk 0:02:55.7]} 12. d4 {[%clk 0:02:44.9]} 12...
dxc4 {[%clk 0:02:51.2]} 13. Bxc4 {[%clk 0:02:41.1]} 13... Nd5 {[%clk 0:02:48.4]}
14. e4 {[%clk 0:02:38.2]} 14... Nf4 {[%clk 0:02:43.6]} 15. Rfd1 {[%clk
0:02:36.8]} 15... Na5 {[%clk 0:02:14]} 16. Bf1 {[%clk 0:02:34.3]} 16... Rc8
{[%clk 0:02:05.1]} 17. b4 {[%clk 0:02:27.3]} 17... Nc6 {[%clk 0:02:02.9]} 18. g3
{[%clk 0:02:19.9]} 18... Ng6 {[%clk 0:02:02.8]} 19. h4 {[%clk 0:02:20.6]} 19...
Bf8 {[%clk 0:01:49.5]} 20. h5 {[%clk 0:02:16.8]} 20... Nge7 {[%clk 0:01:47.2]}
21. d5 {[%clk 0:02:16.9]} 21... exd5 {[%clk 0:01:47.4]} 22. exd5 {[%clk
0:02:15.9]} 22... Nb8 {[%clk 0:01:40.5]} 23. Bc4 {[%clk 0:02:16.3]} 23... b5
{[%clk 0:01:33.2]} 24. Bb3 {[%clk 0:02:14.4]} 24... Qd7 {[%clk 0:01:28.7]} 25.
Ne5 {[%clk 0:01:54.8]} 25... Qf5 {[%clk 0:01:28.9]} 26. Nxf7 {[%clk 0:01:50.9]}
26... Qxh5 {[%clk 0:01:05.7]} 27. Ne4 {[%clk 0:01:33.5]} 27... Nxd5 {[%clk
0:00:56.3]} 28. Nc5 {[%clk 0:01:26]} 28... Bc6 {[%clk 0:00:26.4]} 29. Ne5 {[%clk
0:01:18.6]} 29... Rxe5 {[%clk 0:00:21]} 30. Bxe5 {[%clk 0:01:17.6]} 30... Qxe5
{[%clk 0:00:21.9]} 31. Re1 {[%clk 0:01:16.1]} 31... Qh5 {[%clk 0:00:20.1]} 32.
Rcd1 {[%clk 0:01:13.7]} 32... Rd8 {[%clk 0:00:17.5]} 33. Qe4 {[%clk 0:01:12.7]}
33... Bxc5 {[%clk 0:00:13.9]} 34. bxc5 {[%clk 0:01:11.1]} 34... Kh8 {[%clk
0:00:12.1]} 35. Qe5 {[%clk 0:01:09.3]} 35... Qf3 {[%clk 0:00:09.1]} 36. Re3
{[%clk 0:00:54.7]} 36... Qf8 {[%clk 0:00:02.1]} 37. Bxd5 {[%clk 0:00:53.8]}
37... Qxc5 {[%clk 0:00:01.7]} 38. Bf3 {[%clk 0:00:50.5]} 38... Rxd1+ {[%clk
0:00:02.6]} 39. Bxd1 {[%clk 0:00:50.5]} 39... Qxe5 {[%clk 0:00:02.6]} 40. Rxe5
{[%clk 0:00:50.7]} 40... Nd7 {[%clk 0:00:03.5]} 41. Re7 {[%clk 0:00:48.8]} 41...
Kg8 {[%clk 0:00:03.9]} 42. Bb3+ {[%clk 0:00:48.4]} 42... Kf8 {[%clk 0:00:04.1]}
43. Rf7+ {[%clk 0:00:49]} 43... Ke8 {[%clk 0:00:04.5]} 44. Rxg7 {[%clk
0:00:49.5]} 44... Nc5 {[%clk 0:00:04.8]} 45. Rxc7 {[%clk 0:00:48.5]} 45... Nxb3
{[%clk 0:00:05.2]} 46. Rxc6 {[%clk 0:00:48.9]} 46... a5 {[%clk 0:00:05]} 47.
Rxh6 {[%clk 0:00:48.9]} 47... Nd4 {[%clk 0:00:04]} 48. Ra6 {[%clk 0:00:44.9]}
48... Nb3 {[%clk 0:00:02.4]} 49. f4 {[%clk 0:00:44.7]} 49... Kd7 {[%clk
0:00:02.9]} 50. f5 {[%clk 0:00:44.9]} 50... Nc5 {[%clk 0:00:02.7]} 51. Rxa5
{[%clk 0:00:43.6]} 51... Kc6 {[%clk 0:00:03.4]} 52. f6 {[%clk 0:00:43]} 52...
Kb6 {[%clk 0:00:02.4]} 53. f7 {[%clk 0:00:43.5]} 53... Nd7 {[%clk 0:00:02.3]}
54. Ra8 {[%clk 0:00:44.2]} 54... b4 {[%clk 0:00:01.1]} 55. axb4 {[%clk
0:00:43.1]} 1-0

[Event "Late-Titled-Tuesday-Blitz-October-24-2023"]
[Site "Chess.com"]
[Date "2023.10.24"]
[Round "1"]
[White "Triumphmate"]
[Black "vugarrasulov"]
[Result "0-1"]
[WhiteElo "2515"]
[BlackElo "2997"]
[TimeControl "180+1"]
[EndTime "14:07:35 PDT"]
[Termination "vugarrasulov won by checkmate"]

1. e4 {[%clk 0:03:00.9]} 1... e5 {[%clk 0:02:59.2]} 2. Nf3 {[%clk 0:03:00.4]}
2... Nc6 {[%clk 0:02:59.6]} 3. Nc3 {[%clk 0:03:00.4]} 3... Nf6 {[%clk
0:02:58.9]} 4. Bb5 {[%clk 0:03:01.1]} 4... Bd6 {[%clk 0:02:57]} 5. d3 {[%clk
0:03:00.4]} 5... h6 {[%clk 0:02:56.1]} 6. h3 {[%clk 0:02:58.8]} 6... O-O {[%clk
0:02:56.2]} 7. Be3 {[%clk 0:02:58.5]} 7... Ne7 {[%clk 0:02:50.6]} 8. Ba4 {[%clk
0:02:45.5]} 8... c6 {[%clk 0:02:49.3]} 9. Bb3 {[%clk 0:02:45.6]} 9... Ng6 {[%clk
0:02:46.9]} 10. Qd2 {[%clk 0:02:45.4]} 10... Bb4 {[%clk 0:02:40.8]} 11. a3
{[%clk 0:02:33.2]} 11... Bxc3 {[%clk 0:02:39.7]} 12. bxc3 {[%clk 0:02:33.2]}
12... d5 {[%clk 0:02:40.2]} 13. exd5 {[%clk 0:02:32.9]} 13... Nxd5 {[%clk
0:02:37.7]} 14. c4 {[%clk 0:02:30.7]} 14... Ndf4 {[%clk 0:02:32.1]} 15. O-O-O
{[%clk 0:02:22]} 15... Qf6 {[%clk 0:02:27.5]} 16. g3 {[%clk 0:02:16.8]} 16...
Ne6 {[%clk 0:02:10.5]} 17. Nh2 {[%clk 0:02:07.6]} 17... Nd4 {[%clk 0:02:10.4]}
18. Bxd4 {[%clk 0:02:02.9]} 18... exd4 {[%clk 0:02:11.3]} 19. f4 {[%clk
0:01:59.5]} 19... Bxh3 {[%clk 0:02:02.1]} 20. Nf3 {[%clk 0:01:56.9]} 20... Bg4
{[%clk 0:02:01.2]} 21. Rdf1 {[%clk 0:01:57.1]} 21... Bxf3 {[%clk 0:02:01.1]} 22.
Rxf3 {[%clk 0:01:57.1]} 22... Rae8 {[%clk 0:01:55]} 23. g4 {[%clk 0:01:54.1]}
23... Re3 {[%clk 0:01:53.6]} 24. Rhf1 {[%clk 0:01:51.6]} 24... Rxf3 {[%clk
0:01:49.2]} 25. Rxf3 {[%clk 0:01:52.5]} 25... Re8 {[%clk 0:01:48.2]} 26. f5
{[%clk 0:01:31.8]} 26... Ne5 {[%clk 0:01:45.6]} 27. Rf4 {[%clk 0:01:32.2]} 27...
c5 {[%clk 0:01:42.1]} 28. Ba4 {[%clk 0:01:27.6]} 28... Re7 {[%clk 0:01:39]} 29.
Kb2 {[%clk 0:01:26.3]} 29... b6 {[%clk 0:01:24.6]} 30. Bb3 {[%clk 0:01:22.8]}
30... a5 {[%clk 0:01:22.9]} 31. Re4 {[%clk 0:01:20.2]} 31... Qg5 {[%clk
0:01:10.2]} 32. Qe2 {[%clk 0:01:17.6]} 32... f6 {[%clk 0:01:08.6]} 33. Ba4
{[%clk 0:01:09.4]} 33... Qh4 {[%clk 0:01:08.9]} 34. Bc6 {[%clk 0:01:02.6]} 34...
Nxc6 {[%clk 0:01:02.2]} 35. Rxe7 {[%clk 0:01:00.5]} 35... Nxe7 {[%clk
0:01:03.1]} 36. Qxe7 {[%clk 0:01:01.1]} 36... Qxg4 {[%clk 0:01:02.2]} 37. Qe6+
{[%clk 0:00:48.7]} 37... Kh7 {[%clk 0:01:02.4]} 38. Qxb6 {[%clk 0:00:41.3]}
38... Qxf5 {[%clk 0:01:02.6]} 39. Qxa5 {[%clk 0:00:41.9]} 39... h5 {[%clk
0:00:55.3]} 40. Qc7 {[%clk 0:00:40.3]} 40... h4 {[%clk 0:00:45.8]} 41. a4 {[%clk
0:00:39.9]} 41... h3 {[%clk 0:00:46.3]} 42. a5 {[%clk 0:00:37.3]} 42... Qe5
{[%clk 0:00:45]} 43. Qc8 {[%clk 0:00:17.4]} 43... Qg3 {[%clk 0:00:40.3]} 44.
Qf5+ {[%clk 0:00:14.4]} 44... Kh6 {[%clk 0:00:40.1]} 45. a6 {[%clk 0:00:11.9]}
45... h2 {[%clk 0:00:37.6]} 46. Qe4 {[%clk 0:00:11.1]} 46... Qg1 {[%clk
0:00:37.4]} 47. a7 {[%clk 0:00:04.2]} 47... h1=Q {[%clk 0:00:37.3]} 48. a8=Q
{[%clk 0:00:03.5]} 48... Qb1+ {[%clk 0:00:35.9]} 49. Ka3 {[%clk 0:00:03.4]}
49... Qb4+ {[%clk 0:00:36.6]} 50. Ka2 {[%clk 0:00:02.9]} 50... Qhb1# {[%clk
0:00:37.5]} 0-1

[Event "Late-Titled-Tuesday-Blitz-October-24-2023"]
[Site "Chess.com"]
[Date "2023.10.24"]
[Round "1"]
[White "aa175"]
[Black "nitpicker"]
[Result "1-0"]
[WhiteElo "2601"]
[BlackElo "2256"]
[TimeControl "180+1"]
[EndTime "14:07:39 PDT"]
[Termination "aa175 won on time"]

1. d4 {[%clk 0:03:00.9]} 1... Nf6 {[%clk 0:02:59]} 2. Nf3 {[%clk 0:03:01.4]}
2... b6 {[%clk 0:02:58.2]} 3. Bf4 {[%clk 0:03:01.8]} 3... Bb7 {[%clk 0:02:57.5]}
4. e3 {[%clk 0:03:02.5]} 4... e6 {[%clk 0:02:57.9]} 5. Nbd2 {[%clk 0:03:03.2]}
5... d6 {[%clk 0:02:58]} 6. Bd3 {[%clk 0:03:03]} 6... Nbd7 {[%clk 0:02:58.4]} 7.
h3 {[%clk 0:03:03.1]} 7... Qe7 {[%clk 0:02:58.9]} 8. e4 {[%clk 0:03:02.4]} 8...
e5 {[%clk 0:02:58.6]} 9. dxe5 {[%clk 0:03:02.8]} 9... dxe5 {[%clk 0:02:58.2]}
10. Bh2 {[%clk 0:03:02.5]} 10... g6 {[%clk 0:02:55.2]} 11. Nc4 {[%clk
0:03:01.5]} 11... Nxe4 {[%clk 0:02:48.3]} 12. Nfxe5 {[%clk 0:03:01.7]} 12... Bg7
{[%clk 0:01:51.2]} 13. Qe2 {[%clk 0:02:27.5]} 13... Nec5 {[%clk 0:01:46.4]} 14.
Nxd7 {[%clk 0:02:09.7]} 14... Nxd3+ {[%clk 0:01:41.4]} 15. cxd3 {[%clk
0:02:09.2]} 15... Qxe2+ {[%clk 0:01:35.4]} 16. Kxe2 {[%clk 0:02:09.2]} 16...
Kxd7 {[%clk 0:01:35.8]} 17. Rhc1 {[%clk 0:02:02.6]} 17... Bxg2 {[%clk
0:01:31.6]} 18. Ne3 {[%clk 0:02:02]} 18... Bxh3 {[%clk 0:01:24.6]} 19. Rxc7+
{[%clk 0:01:57.5]} 19... Ke8 {[%clk 0:01:24.7]} 20. Nd5 {[%clk 0:01:47.2]} 20...
Be6 {[%clk 0:01:18.8]} 21. Nf4 {[%clk 0:01:23]} 21... Bg4+ {[%clk 0:01:05.9]}
22. f3 {[%clk 0:01:22.5]} 22... Bf5 {[%clk 0:01:06]} 23. Re1 {[%clk 0:01:11.3]}
23... Bf6 {[%clk 0:00:46]} 24. Nd5 {[%clk 0:01:09.5]} 24... Bd8 {[%clk 0:00:43]}
25. Kd2+ {[%clk 0:00:45.4]} 25... Be6 {[%clk 0:00:32.7]} 26. Rb7 {[%clk
0:00:26.8]} 26... Kf8 {[%clk 0:00:31.4]} 27. Bd6+ {[%clk 0:00:25.3]} 27... Kg8
{[%clk 0:00:28.7]} 28. Ne7+ {[%clk 0:00:03.1]} 28... Bxe7 {[%clk 0:00:18.7]} 29.
Rxe7 {[%clk 0:00:04]} 29... Rd8 {[%clk 0:00:09.8]} 30. Be5 {[%clk 0:00:04.1]}
30... Bxa2 {[%clk 0:00:08.2]} 31. Bxh8 {[%clk 0:00:03.8]} 31... Kxh8 {[%clk
0:00:07.4]} 32. Re8+ {[%clk 0:00:03.5]} 32... Rxe8 {[%clk 0:00:07]} 33. Rxe8+
{[%clk 0:00:04.4]} 33... Kg7 {[%clk 0:00:07.1]} 34. Ra8 {[%clk 0:00:05.1]} 34...
a5 {[%clk 0:00:05.7]} 35. Rb8 {[%clk 0:00:04.9]} 35... a4 {[%clk 0:00:05.4]} 36.
Rxb6 {[%clk 0:00:05.2]} 36... Bb3 {[%clk 0:00:05.8]} 37. Ke3 {[%clk 0:00:05.4]}
37... h5 {[%clk 0:00:06]} 38. Kf4 {[%clk 0:00:05.8]} 38... f6 {[%clk 0:00:05.7]}
39. d4 {[%clk 0:00:06.3]} 39... g5+ {[%clk 0:00:06]} 40. Kg3 {[%clk 0:00:05.8]}
40... Kg6 {[%clk 0:00:05.3]} 41. Rb5 {[%clk 0:00:04.2]} 41... h4+ {[%clk
0:00:04.4]} 42. Kh3 {[%clk 0:00:02.8]} 42... Be6+ {[%clk 0:00:04.3]} 43. Kg2
{[%clk 0:00:02.6]} 43... f5 {[%clk 0:00:03.7]} 44. d5 {[%clk 0:00:03.2]} 44...
Bd7 {[%clk 0:00:03.3]} 45. Rb7 {[%clk 0:00:03.6]} 45... Be8 {[%clk 0:00:02.5]}
46. d6 {[%clk 0:00:04]} 1-0

[Event "Late-Titled-Tuesday-Blitz-October-24-2023"]
[Site "Chess.com"]
[Date "2023.10.24"]
[Round "1"]
[White "Kostukov_Alex"]
[Black "GianmarcoVaR"]
[Result "1-0"]
[WhiteElo "2420"]
[BlackElo "2703"]
[TimeControl "180+1"]
[EndTime "14:07:40 PDT"]
[Termination "Kostukov_Alex won by resignation"]

1. g3 {[%clk 0:02:56.2]} 1... d5 {[%clk 0:02:54.8]} 2. Bg2 {[%clk 0:02:55.2]}
2... Nf6 {[%clk 0:02:54.4]} 3. d3 {[%clk 0:02:55]} 3... e5 {[%clk 0:02:48.4]} 4.
e4 {[%clk 0:02:54.9]} 4... dxe4 {[%clk 0:02:46.7]} 5. dxe4 {[%clk 0:02:55]} 5...
Qxd1+ {[%clk 0:02:47.6]} 6. Kxd1 {[%clk 0:02:55.1]} 6... Bc5 {[%clk 0:02:44.5]}
7. f3 {[%clk 0:02:55]} 7... c6 {[%clk 0:02:40.3]} 8. Nd2 {[%clk 0:02:53.9]} 8...
Nbd7 {[%clk 0:02:33.5]} 9. a4 {[%clk 0:02:52]} 9... a5 {[%clk 0:02:31.9]} 10.
Nc4 {[%clk 0:02:36.3]} 10... Ke7 {[%clk 0:02:25]} 11. Be3 {[%clk 0:02:33.1]}
11... Bxe3 {[%clk 0:02:23.2]} 12. Nxe3 {[%clk 0:02:33.2]} 12... Nc5 {[%clk
0:02:21]} 13. Ke2 {[%clk 0:02:17.4]} 13... Rd8 {[%clk 0:02:17.7]} 14. Nh3 {[%clk
0:02:08.5]} 14... b6 {[%clk 0:02:11.9]} 15. Rhd1 {[%clk 0:01:56.3]} 15... Ba6+
{[%clk 0:02:12.1]} 16. Ke1 {[%clk 0:01:52.6]} 16... g6 {[%clk 0:02:11.2]} 17.
Nf2 {[%clk 0:01:50]} 17... Ne8 {[%clk 0:02:03.3]} 18. Bf1 {[%clk 0:01:49.4]}
18... Rxd1+ {[%clk 0:01:49.5]} 19. Nfxd1 {[%clk 0:01:44.5]} 19... Nd6 {[%clk
0:01:40.7]} 20. Bxa6 {[%clk 0:01:40.3]} 20... Rxa6 {[%clk 0:01:41.6]} 21. Nf2
{[%clk 0:01:31.2]} 21... f5 {[%clk 0:01:38.9]} 22. exf5 {[%clk 0:01:26.5]} 22...
gxf5 {[%clk 0:01:39.5]} 23. Nd3 {[%clk 0:01:19.3]} 23... Nxd3+ {[%clk
0:01:29.5]} 24. cxd3 {[%clk 0:01:17.4]} 24... b5 {[%clk 0:01:16.9]} 25. Kd2
{[%clk 0:01:16.6]} 25... Ke6 {[%clk 0:01:14.9]} 26. b3 {[%clk 0:01:00.3]} 26...
h5 {[%clk 0:01:09.1]} 27. f4 {[%clk 0:00:52.2]} 27... exf4 {[%clk 0:00:39.4]}
28. gxf4 {[%clk 0:00:51.4]} 28... Kf6 {[%clk 0:00:36.2]} 29. Rc1 {[%clk
0:00:47.6]} 29... bxa4 {[%clk 0:00:35.2]} 30. bxa4 {[%clk 0:00:47.4]} 30... Rb6
{[%clk 0:00:34.1]} 31. Rc5 {[%clk 0:00:45.7]} 31... Rb4 {[%clk 0:00:31.1]} 32.
Rxc6 {[%clk 0:00:40]} 32... Rxa4 {[%clk 0:00:02.5]} 33. Rxd6+ {[%clk 0:00:38.1]}
33... Kf7 {[%clk 0:00:02.4]} 34. d4 {[%clk 0:00:26.5]} 34... Ra2+ {[%clk
0:00:02.8]} 35. Nc2 {[%clk 0:00:26.5]} 35... Ra1 {[%clk 0:00:03.7]} 36. Rd5
{[%clk 0:00:25.5]} 36... Rh1 {[%clk 0:00:02.3]} 37. Rxf5+ {[%clk 0:00:24.4]}
37... Kg6 {[%clk 0:00:02.8]} 38. Rg5+ {[%clk 0:00:21.6]} 38... Kh6 {[%clk
0:00:02.6]} 39. Rg2 {[%clk 0:00:21.4]} 39... h4 {[%clk 0:00:02.6]} 40. Ne3
{[%clk 0:00:16.3]} 40... h3 {[%clk 0:00:03.1]} 41. Rf2 {[%clk 0:00:15.3]} 41...
Kg6 {[%clk 0:00:02.9]} 42. f5+ {[%clk 0:00:13.7]} 42... Kf7 {[%clk 0:00:02.9]}
43. f6 {[%clk 0:00:13.4]} 43... a4 {[%clk 0:00:03.2]} 44. Nc4 {[%clk 0:00:12.9]}
44... Rg1 {[%clk 0:00:02.9]} 45. Ne5+ {[%clk 0:00:12.7]} 45... Kf8 {[%clk
0:00:03.2]} 46. f7 {[%clk 0:00:13.2]} 46... Rg2 {[%clk 0:00:02.3]} 47. Nd7+
{[%clk 0:00:12.4]} 1-0

[Event "Late-Titled-Tuesday-Blitz-October-24-2023"]
[Site "Chess.com"]
[Date "2023.10.24"]
[Round "1"]
[White "Kleyton_Lima"]
[Black "kleinebeer98"]
[Result "0-1"]
[WhiteElo "2500"]
[BlackElo "2877"]
[TimeControl "180+1"]
[EndTime "14:07:41 PDT"]
[Termination "kleinebeer98 won by checkmate"]

1. e4 {[%clk 0:02:49.1]} 1... e5 {[%clk 0:02:59.1]} 2. Nf3 {[%clk 0:02:48.6]}
2... Nc6 {[%clk 0:02:59.8]} 3. d4 {[%clk 0:02:49.1]} 3... exd4 {[%clk 0:03:00]}
4. Nxd4 {[%clk 0:02:50]} 4... Nf6 {[%clk 0:03:00.4]} 5. Nxc6 {[%clk 0:02:49.4]}
5... bxc6 {[%clk 0:03:00.5]} 6. e5 {[%clk 0:02:50]} 6... Qe7 {[%clk 0:03:01.2]}
7. Qe2 {[%clk 0:02:39.3]} 7... Nd5 {[%clk 0:03:01.9]} 8. c4 {[%clk 0:02:38.9]}
8... Nb6 {[%clk 0:03:01.2]} 9. Nc3 {[%clk 0:02:37.1]} 9... Qe6 {[%clk 0:03:01]}
10. Qe4 {[%clk 0:02:32]} 10... Bb4 {[%clk 0:02:57.6]} 11. Bd2 {[%clk 0:02:28.5]}
11... Bxc3 {[%clk 0:02:50.8]} 12. Bxc3 {[%clk 0:02:27.7]} 12... d5 {[%clk
0:02:51.7]} 13. cxd5 {[%clk 0:02:20.1]} 13... cxd5 {[%clk 0:02:52.2]} 14. Qb4
{[%clk 0:02:18.1]} 14... Nd7 {[%clk 0:02:42.6]} 15. Bb5 {[%clk 0:01:44.7]} 15...
c6 {[%clk 0:02:39.8]} 16. Ba4 {[%clk 0:01:44.4]} 16... Rb8 {[%clk 0:02:38.9]}
17. Qa3 {[%clk 0:01:44.1]} 17... Nb6 {[%clk 0:02:33.1]} 18. Bc2 {[%clk
0:01:23.1]} 18... Qe7 {[%clk 0:02:22.7]} 19. Qxe7+ {[%clk 0:01:13.7]} 19... Kxe7
{[%clk 0:02:23.6]} 20. O-O {[%clk 0:01:11.3]} 20... c5 {[%clk 0:02:22.3]} 21. a4
{[%clk 0:01:07.3]} 21... d4 {[%clk 0:02:22.4]} 22. Bd2 {[%clk 0:01:05.2]} 22...
Nd5 {[%clk 0:02:23]} 23. Rab1 {[%clk 0:00:58]} 23... Be6 {[%clk 0:02:21.9]} 24.
Be4 {[%clk 0:00:53.6]} 24... Rb3 {[%clk 0:02:17.5]} 25. Rfc1 {[%clk 0:00:50.5]}
25... Rc8 {[%clk 0:02:17.1]} 26. Bc2 {[%clk 0:00:45.8]} 26... Rb6 {[%clk
0:02:15.9]} 27. Bg5+ {[%clk 0:00:45.2]} 27... Kd7 {[%clk 0:02:13]} 28. Be4
{[%clk 0:00:42.9]} 28... c4 {[%clk 0:02:11.5]} 29. a5 {[%clk 0:00:34.7]} 29...
Rb3 {[%clk 0:02:11.2]} 30. Bc2 {[%clk 0:00:32.4]} 30... Rb4 {[%clk 0:02:10.4]}
31. Be4 {[%clk 0:00:25.3]} 31... Rcb8 {[%clk 0:02:08.8]} 32. f4 {[%clk
0:00:25.1]} 32... g6 {[%clk 0:02:07.7]} 33. g4 {[%clk 0:00:24.8]} 33... Ne3
{[%clk 0:02:07.8]} 34. h3 {[%clk 0:00:21.4]} 34... Rxb2 {[%clk 0:02:07.7]} 35.
Rxb2 {[%clk 0:00:22.3]} 35... Rxb2 {[%clk 0:02:08.1]} 36. f5 {[%clk 0:00:22.5]}
36... gxf5 {[%clk 0:02:08]} 37. Bxe3 {[%clk 0:00:22.4]} 37... fxe4 {[%clk
0:02:03.9]} 38. Bxd4 {[%clk 0:00:22.8]} 38... Ra2 {[%clk 0:02:01]} 39. Bxa7
{[%clk 0:00:22.3]} 39... Rxa5 {[%clk 0:02:00.6]} 40. Bd4 {[%clk 0:00:17.3]}
40... Kc6 {[%clk 0:01:57.9]} 41. Kf2 {[%clk 0:00:17.6]} 41... Ra2+ {[%clk
0:01:55.6]} 42. Kg3 {[%clk 0:00:16.7]} 42... Kd5 {[%clk 0:01:54.2]} 43. Bc3
{[%clk 0:00:16.5]} 43... Re2 {[%clk 0:01:47.8]} 44. Kf4 {[%clk 0:00:15.9]} 44...
Rf2+ {[%clk 0:01:48.1]} 45. Kg3 {[%clk 0:00:14.6]} 45... Rf3+ {[%clk 0:01:48.7]}
46. Kg2 {[%clk 0:00:15.1]} 46... h5 {[%clk 0:01:47.8]} 47. gxh5 {[%clk
0:00:14.7]} 47... Rxh3 {[%clk 0:01:47.6]} 48. Rd1+ {[%clk 0:00:12.6]} 48... Kc6
{[%clk 0:01:46]} 49. Be1 {[%clk 0:00:11.7]} 49... Rxh5 {[%clk 0:01:45.2]} 50.
Rd4 {[%clk 0:00:09.6]} 50... Rxe5 {[%clk 0:01:43.4]} 51. Bd2 {[%clk 0:00:07.1]}
51... e3 {[%clk 0:01:40.8]} 52. Bc3 {[%clk 0:00:06.7]} 52... Bd5+ {[%clk
0:01:36.5]} 53. Kf1 {[%clk 0:00:06.5]} 53... e2+ {[%clk 0:00:51.6]} 54. Ke1
{[%clk 0:00:06.4]} 54... Re3 {[%clk 0:00:52.3]} 55. Bd2 {[%clk 0:00:05.4]} 55...
Rd3 {[%clk 0:00:52.7]} 56. Rf4 {[%clk 0:00:02.9]} 56... c3 {[%clk 0:00:52.3]}
57. Bxc3 {[%clk 0:00:01.9]} 57... Rxc3 {[%clk 0:00:52.7]} 58. Kxe2 {[%clk
0:00:02.5]} 58... Kd6 {[%clk 0:00:53.3]} 59. Kd2 {[%clk 0:00:02.4]} 59... Ra3
{[%clk 0:00:53.3]} 60. Rh4 {[%clk 0:00:03.1]} 60... f5 {[%clk 0:00:52.6]} 61.
Rh8 {[%clk 0:00:03.8]} 61... Ke5 {[%clk 0:00:52.9]} 62. Ke2 {[%clk 0:00:04.3]}
62... f4 {[%clk 0:00:51.8]} 63. Re8+ {[%clk 0:00:03.7]} 63... Kd4 {[%clk
0:00:52.4]} 64. Kf2 {[%clk 0:00:03.8]} 64... Ra2+ {[%clk 0:00:52.7]} 65. Kf1
{[%clk 0:00:04.5]} 65... Be4 {[%clk 0:00:53.1]} 66. Rd8+ {[%clk 0:00:04.5]}
66... Ke3 {[%clk 0:00:53.8]} 67. Kg1 {[%clk 0:00:04.1]} 67... Ra1+ {[%clk
0:00:54.1]} 68. Kh2 {[%clk 0:00:04.3]} 68... Rh1# {[%clk 0:00:55]} 0-1

[Event "Late-Titled-Tuesday-Blitz-October-24-2023"]
[Site "Chess.com"]
[Date "2023.10.24"]
[Round "1"]
[White "HajiyevKanan"]
[Black "igorkovalenko"]
[Result "0-1"]
[WhiteElo "2509"]
[BlackElo "2927"]
[TimeControl "180+1"]
[EndTime "14:07:42 PDT"]
[Termination "igorkovalenko won by resignation"]

1. d4 {[%clk 0:03:00.9]} 1... Nf6 {[%clk 0:02:59.8]} 2. Nf3 {[%clk 0:03:01.5]}
2... g6 {[%clk 0:02:59.8]} 3. c4 {[%clk 0:03:01.5]} 3... Bg7 {[%clk 0:03:00.7]}
4. Nc3 {[%clk 0:03:00.5]} 4... d6 {[%clk 0:03:00.8]} 5. g3 {[%clk 0:02:58.9]}
5... Nc6 {[%clk 0:03:00.2]} 6. Bg2 {[%clk 0:02:59]} 6... O-O {[%clk 0:03:00.6]}
7. O-O {[%clk 0:02:58.6]} 7... a6 {[%clk 0:03:01.1]} 8. b3 {[%clk 0:02:57.6]}
8... Rb8 {[%clk 0:03:01]} 9. Bb2 {[%clk 0:02:56.2]} 9... b5 {[%clk 0:03:00.2]}
10. cxb5 {[%clk 0:02:46.7]} 10... axb5 {[%clk 0:03:01.1]} 11. Rc1 {[%clk
0:02:43.7]} 11... b4 {[%clk 0:02:59.9]} 12. Na4 {[%clk 0:02:43.6]} 12... Bd7
{[%clk 0:02:59.7]} 13. Re1 {[%clk 0:02:15.8]} 13... Na5 {[%clk 0:02:42.5]} 14.
e4 {[%clk 0:02:10.4]} 14... Bxa4 {[%clk 0:02:42]} 15. bxa4 {[%clk 0:02:11.3]}
15... c6 {[%clk 0:02:42.5]} 16. Nd2 {[%clk 0:02:00.3]} 16... Nd7 {[%clk
0:02:40.6]} 17. Nb3 {[%clk 0:01:53.4]} 17... c5 {[%clk 0:02:35.3]} 18. e5 {[%clk
0:01:40.8]} 18... cxd4 {[%clk 0:02:24.2]} 19. exd6 {[%clk 0:01:34.8]} 19... e5
{[%clk 0:02:23.9]} 20. Rc7 {[%clk 0:01:15.7]} 20... Nxb3 {[%clk 0:02:23.6]} 21.
axb3 {[%clk 0:01:12.8]} 21... Rb6 {[%clk 0:02:23.4]} 22. Rc6 {[%clk 0:00:47]}
22... Rxc6 {[%clk 0:02:22.9]} 23. Bxc6 {[%clk 0:00:47.9]} 23... Nb8 {[%clk
0:02:23.5]} 24. Qf3 {[%clk 0:00:42.2]} 24... Qxd6 {[%clk 0:02:23]} 25. Bd5
{[%clk 0:00:42.3]} 25... Nd7 {[%clk 0:02:18.6]} 26. Rc1 {[%clk 0:00:39]} 26...
Nf6 {[%clk 0:02:17.9]} 27. Bb7 {[%clk 0:00:35.2]} 27... Re8 {[%clk 0:02:06.8]}
28. a5 {[%clk 0:00:33.7]} 28... e4 {[%clk 0:02:05.9]} 29. Qf4 {[%clk 0:00:33.5]}
29... Qe6 {[%clk 0:01:39.8]} 30. Bxd4 {[%clk 0:00:28.8]} 30... Nd5 {[%clk
0:01:18.8]} 31. Bxd5 {[%clk 0:00:22]} 31... Qxd5 {[%clk 0:01:19.7]} 32. Bxg7
{[%clk 0:00:22.3]} 32... Kxg7 {[%clk 0:01:20]} 33. Rc4 {[%clk 0:00:18.8]} 33...
Qd1+ {[%clk 0:01:16.7]} 34. Kg2 {[%clk 0:00:18.8]} 34... Qxb3 {[%clk 0:01:17.2]}
35. Rxe4 {[%clk 0:00:17.5]} 35... Qd5 {[%clk 0:01:16.2]} 36. f3 {[%clk
0:00:15.1]} 36... Rxe4 {[%clk 0:01:14.9]} 37. Qxe4 {[%clk 0:00:14.5]} 37... Qxa5
{[%clk 0:01:08.2]} 38. Qd4+ {[%clk 0:00:15]} 38... Kf8 {[%clk 0:01:07.8]} 39.
Qh8+ {[%clk 0:00:15]} 39... Ke7 {[%clk 0:01:07.8]} 40. Qxh7 {[%clk 0:00:15.5]}
40... b3 {[%clk 0:01:06.2]} 41. Qh4+ {[%clk 0:00:13.7]} 41... Ke8 {[%clk
0:01:04.1]} 42. Qh8+ {[%clk 0:00:12.6]} 42... Ke7 {[%clk 0:00:59.4]} 43. Qh4+
{[%clk 0:00:12.9]} 43... f6 {[%clk 0:00:58]} 44. Qe4+ {[%clk 0:00:12.1]} 44...
Kf8 {[%clk 0:00:57.1]} 45. Qxg6 {[%clk 0:00:11]} 45... Qd2+ {[%clk 0:00:56.7]}
46. Kh3 {[%clk 0:00:10.5]} 46... Qd4 {[%clk 0:00:52.2]} 47. Qh6+ {[%clk
0:00:07.3]} 47... Ke8 {[%clk 0:00:49.6]} 48. Qh8+ {[%clk 0:00:07.2]} 48... Ke7
{[%clk 0:00:49.1]} 49. Qg7+ {[%clk 0:00:07.6]} 49... Kd6 {[%clk 0:00:49.3]} 50.
Qf8+ {[%clk 0:00:07.9]} 50... Kc6 {[%clk 0:00:47.8]} 51. Qc8+ {[%clk 0:00:08.1]}
51... Kb5 {[%clk 0:00:47.8]} 52. Qb7+ {[%clk 0:00:07.6]} 52... Kc4 {[%clk
0:00:47.8]} 53. Qa6+ {[%clk 0:00:07.3]} 53... Kc3 {[%clk 0:00:48.1]} 54. Qc6+
{[%clk 0:00:07.1]} 54... Kd2 {[%clk 0:00:47.2]} 55. f4 {[%clk 0:00:02.5]} 55...
b2 {[%clk 0:00:46.9]} 56. Qg2+ {[%clk 0:00:03.2]} 56... Kc3 {[%clk 0:00:44.6]}
57. Qf3+ {[%clk 0:00:03.2]} 57... Qd3 {[%clk 0:00:43.6]} 58. Qf2 {[%clk
0:00:03]} 58... b1=Q {[%clk 0:00:42.9]} 0-1